[Event "Early-Titled-Tuesday-Blitz-January-30-2024"]
[Site "Chess.com"]
[Date "2024.01.30"]
[Round "4"]
[White "ValentunHulka"]
[Black "jens1102"]
[Result "1-0"]
[WhiteElo "2808"]
[BlackElo "2574"]
[TimeControl "180+1"]
[EndTime "8:42:45 PST"]
[Termination "ValentunHulka won by checkmate"]

1. Nc3 {[%clk 0:03:00.9]} 1... d5 {[%clk 0:02:59.4]} 2. e4 {[%clk 0:03:01]} 2...
d4 {[%clk 0:02:58.8]} 3. Nce2 {[%clk 0:03:01]} 3... c5 {[%clk 0:02:59.6]} 4. c3
{[%clk 0:03:01.6]} 4... Nc6 {[%clk 0:02:59.7]} 5. d3 {[%clk 0:03:01.2]} 5... e5
{[%clk 0:02:59.4]} 6. Ng3 {[%clk 0:02:59.9]} 6... Nge7 {[%clk 0:02:57.9]} 7. Nf3
{[%clk 0:02:59.5]} 7... f6 {[%clk 0:02:57]} 8. Nh4 {[%clk 0:02:53.5]} 8... g6
{[%clk 0:02:55.8]} 9. f4 {[%clk 0:02:52.7]} 9... Bg7 {[%clk 0:02:54.1]} 10. f5
{[%clk 0:02:50.6]} 10... O-O {[%clk 0:02:40.7]} 11. Be2 {[%clk 0:02:49.9]} 11...
b5 {[%clk 0:02:19.9]} 12. Qb3+ {[%clk 0:02:41.4]} 12... Kh8 {[%clk 0:02:11.2]}
13. Qxb5 {[%clk 0:02:41.6]} 13... Qd6 {[%clk 0:02:03.2]} 14. Qa4 {[%clk
0:02:37.2]} 14... Bd7 {[%clk 0:01:51.7]} 15. O-O {[%clk 0:02:28.7]} 15... dxc3
{[%clk 0:01:47.2]} 16. bxc3 {[%clk 0:02:28.9]} 16... Nd4 {[%clk 0:01:47.3]} 17.
Qd1 {[%clk 0:02:29.5]} 17... Nxe2+ {[%clk 0:01:40]} 18. Qxe2 {[%clk 0:02:30.2]}
18... Bb5 {[%clk 0:01:39]} 19. c4 {[%clk 0:02:27.1]} 19... Ba4 {[%clk
0:01:24.8]} 20. fxg6 {[%clk 0:02:24.8]} 20... Nxg6 {[%clk 0:01:10.9]} 21. Ngf5
{[%clk 0:02:14.5]} 21... Qd7 {[%clk 0:01:06.8]} 22. Be3 {[%clk 0:01:50.4]} 22...
Rfd8 {[%clk 0:00:59.9]} 23. Nxg6+ {[%clk 0:01:38.3]} 23... hxg6 {[%clk
0:00:57.8]} 24. Nxg7 {[%clk 0:01:35.4]} 24... Kxg7 {[%clk 0:00:58.7]} 25. Qf2
{[%clk 0:01:28.6]} 25... Qc6 {[%clk 0:00:45.1]} 26. Bxc5 {[%clk 0:01:23]} 26...
Rd7 {[%clk 0:00:29]} 27. Rac1 {[%clk 0:01:00.3]} 27... Rad8 {[%clk 0:00:28.4]}
28. Rc3 {[%clk 0:00:59.7]} 28... Qe6 {[%clk 0:00:12.9]} 29. Qe2 {[%clk 0:00:52]}
29... Qc6 {[%clk 0:00:10.4]} 30. Be3 {[%clk 0:00:52.4]} 30... a5 {[%clk
0:00:09.2]} 31. Ra3 {[%clk 0:00:51.6]} 31... Rb7 {[%clk 0:00:08.3]} 32. Qf2
{[%clk 0:00:47]} 32... Rdb8 {[%clk 0:00:08]} 33. Qh4 {[%clk 0:00:45.9]} 33...
Rb1 {[%clk 0:00:07.4]} 34. Qh6+ {[%clk 0:00:44.2]} 34... Kf7 {[%clk 0:00:07.7]}
35. Qh7+ {[%clk 0:00:39.9]} 35... Ke6 {[%clk 0:00:08.1]} 36. Rxb1 {[%clk
0:00:31.7]} 36... Rxb1+ {[%clk 0:00:07.6]} 37. Kf2 {[%clk 0:00:32.4]} 37... Rb2+
{[%clk 0:00:07.9]} 38. Kg3 {[%clk 0:00:32.7]} 38... Qe8 {[%clk 0:00:08.8]} 39.
Qh3+ {[%clk 0:00:24.9]} 39... Kf7 {[%clk 0:00:08.8]} 40. Qh7+ {[%clk 0:00:23]}
40... Ke6 {[%clk 0:00:08.9]} 41. c5 {[%clk 0:00:23.6]} 41... g5 {[%clk 0:00:06]}
42. Rc3 {[%clk 0:00:16.8]} 42... Bc6 {[%clk 0:00:05.9]} 43. Qf5+ {[%clk
0:00:14.9]} 43... Kf7 {[%clk 0:00:06.2]} 44. Bxg5 {[%clk 0:00:13.9]} 44... Kg7
{[%clk 0:00:06.3]} 45. Qxf6+ {[%clk 0:00:14]} 45... Kg8 {[%clk 0:00:06.9]} 46.
Qf5 {[%clk 0:00:09.4]} 46... Rxa2 {[%clk 0:00:06.8]} 47. Bh4 {[%clk 0:00:08.7]}
47... Qf7 {[%clk 0:00:05.9]} 48. Qg4+ {[%clk 0:00:08]} 48... Qg7 {[%clk
0:00:06.4]} 49. Bf6 {[%clk 0:00:07.8]} 49... Qxg4+ {[%clk 0:00:06.5]} 50. Kxg4
{[%clk 0:00:08.7]} 50... a4 {[%clk 0:00:06]} 51. Bxe5 {[%clk 0:00:08.8]} 51...
Kf7 {[%clk 0:00:06.9]} 52. d4 {[%clk 0:00:08.2]} 52... Rxg2+ {[%clk 0:00:07.1]}
53. Rg3 {[%clk 0:00:06.5]} 53... Rxg3+ {[%clk 0:00:07.2]} 54. Kxg3 {[%clk
0:00:06.9]} 54... Bxe4 {[%clk 0:00:08.1]} 55. Bf4 {[%clk 0:00:04.8]} 55... a3
{[%clk 0:00:08.2]} 56. Bc1 {[%clk 0:00:05.5]} 56... a2 {[%clk 0:00:09]} 57. Bb2
{[%clk 0:00:06.2]} 57... Bd5 {[%clk 0:00:09.8]} 58. Kf4 {[%clk 0:00:06.8]} 58...
Kf6 {[%clk 0:00:09.9]} 59. h4 {[%clk 0:00:07.2]} 59... Ke6 {[%clk 0:00:09.7]}
60. h5 {[%clk 0:00:07.5]} 60... Bb3 {[%clk 0:00:09.8]} 61. h6 {[%clk 0:00:06.9]}
61... Bc2 {[%clk 0:00:09.9]} 62. c6 {[%clk 0:00:05.5]} 62... Kd6 {[%clk
0:00:09.7]} 63. d5 {[%clk 0:00:06.2]} 63... Bb3 {[%clk 0:00:08.5]} 64. h7 {[%clk
0:00:06]} 64... Bxd5 {[%clk 0:00:09.1]} 65. h8=Q {[%clk 0:00:06.5]} 65... Kxc6
{[%clk 0:00:10]} 66. Ba1 {[%clk 0:00:06.6]} 66... Kb5 {[%clk 0:00:10.3]} 67. Qc3
{[%clk 0:00:07.5]} 67... Bc4 {[%clk 0:00:10.8]} 68. Ke5 {[%clk 0:00:08.4]} 68...
Kc5 {[%clk 0:00:10.5]} 69. Qd4+ {[%clk 0:00:08.4]} 69... Kb4 {[%clk 0:00:11.4]}
70. Kd6 {[%clk 0:00:09.1]} 70... Kb3 {[%clk 0:00:12.3]} 71. Qc3+ {[%clk
0:00:09]} 71... Ka4 {[%clk 0:00:12.4]} 72. Qxc4+ {[%clk 0:00:09.6]} 72... Ka3
{[%clk 0:00:13.3]} 73. Qc3+ {[%clk 0:00:08.9]} 73... Ka4 {[%clk 0:00:13.9]} 74.
Qc2+ {[%clk 0:00:09.3]} 74... Ka3 {[%clk 0:00:14.8]} 75. Qb2+ {[%clk 0:00:09.9]}
75... Ka4 {[%clk 0:00:15.3]} 76. Qxa2+ {[%clk 0:00:10.6]} 76... Kb4 {[%clk
0:00:16.2]} 77. Qb2+ {[%clk 0:00:10.7]} 77... Ka4 {[%clk 0:00:17.1]} 78. Qb7
{[%clk 0:00:08.9]} 78... Ka3 {[%clk 0:00:17.5]} 79. Kc5 {[%clk 0:00:09.6]} 79...
Ka2 {[%clk 0:00:18.4]} 80. Kc4 {[%clk 0:00:09.5]} 80... Kxa1 {[%clk 0:00:18]}
81. Kc3 {[%clk 0:00:10.2]} 81... Ka2 {[%clk 0:00:18.8]} 82. Kc2 {[%clk
0:00:02.3]} 82... Ka1 {[%clk 0:00:17]} 83. Qb1# {[%clk 0:00:01.6]} 1-0

[Event "Early-Titled-Tuesday-Blitz-January-30-2024"]
[Site "Chess.com"]
[Date "2024.01.30"]
[Round "4"]
[White "winniethepooh04"]
[Black "MaxLeto"]
[Result "0-1"]
[WhiteElo "2535"]
[BlackElo "2376"]
[TimeControl "180+1"]
[EndTime "8:42:48 PST"]
[Termination "MaxLeto won by checkmate"]

1. d4 {[%clk 0:03:00.9]} 1... h5 {[%clk 0:02:58.4]} 2. Nf3 {[%clk 0:02:59.4]}
2... h4 {[%clk 0:02:56.3]} 3. h3 {[%clk 0:02:59.1]} 3... e6 {[%clk 0:02:56.4]}
4. Bf4 {[%clk 0:02:59.5]} 4... d5 {[%clk 0:02:55.8]} 5. Nbd2 {[%clk 0:02:56.4]}
5... Bd6 {[%clk 0:02:52.3]} 6. Bxd6 {[%clk 0:02:55.5]} 6... cxd6 {[%clk
0:02:53.2]} 7. e4 {[%clk 0:02:50.1]} 7... dxe4 {[%clk 0:02:51.4]} 8. Nxe4 {[%clk
0:02:51]} 8... d5 {[%clk 0:02:52.3]} 9. Ned2 {[%clk 0:02:49.6]} 9... Qb6 {[%clk
0:02:51]} 10. Rb1 {[%clk 0:02:48.8]} 10... Nc6 {[%clk 0:02:50.2]} 11. c3 {[%clk
0:02:48.8]} 11... Nf6 {[%clk 0:02:39.7]} 12. Qb3 {[%clk 0:02:47.7]} 12... Bd7
{[%clk 0:02:29.3]} 13. Bd3 {[%clk 0:02:46.9]} 13... Na5 {[%clk 0:02:25.9]} 14.
Qxb6 {[%clk 0:02:46.1]} 14... axb6 {[%clk 0:02:26.8]} 15. O-O {[%clk 0:02:45.4]}
15... b5 {[%clk 0:02:22.7]} 16. a3 {[%clk 0:02:45.2]} 16... Nc4 {[%clk
0:02:22.5]} 17. Nxc4 {[%clk 0:02:44.8]} 17... bxc4 {[%clk 0:02:06.6]} 18. Bc2
{[%clk 0:02:44.8]} 18... Ba4 {[%clk 0:02:07.2]} 19. Rbc1 {[%clk 0:02:38.6]}
19... Bxc2 {[%clk 0:02:05.6]} 20. Rxc2 {[%clk 0:02:39.5]} 20... Ne4 {[%clk
0:02:00.9]} 21. Re1 {[%clk 0:02:36.9]} 21... f6 {[%clk 0:01:56.5]} 22. Nh2
{[%clk 0:02:32.3]} 22... Kf7 {[%clk 0:01:54.4]} 23. Rce2 {[%clk 0:02:31.8]}
23... Ra6 {[%clk 0:01:50]} 24. Nf1 {[%clk 0:02:30]} 24... Re8 {[%clk 0:01:39.4]}
25. Ne3 {[%clk 0:02:27.6]} 25... Rc8 {[%clk 0:01:06.3]} 26. Nd1 {[%clk
0:02:17.8]} 26... Rcc6 {[%clk 0:00:59.5]} 27. Re3 {[%clk 0:02:17.4]} 27... Rab6
{[%clk 0:00:52.2]} 28. Kf1 {[%clk 0:02:11]} 28... Nd2+ {[%clk 0:00:31.7]} 29.
Ke2 {[%clk 0:02:09.7]} 29... Ne4 {[%clk 0:00:32.6]} 30. Kf1 {[%clk 0:02:09.1]}
30... Nd2+ {[%clk 0:00:31.3]} 31. Ke2 {[%clk 0:02:09.4]} 31... Ne4 {[%clk
0:00:32.2]} 32. f3 {[%clk 0:02:05.8]} 32... Ng3+ {[%clk 0:00:31.3]} 33. Kf2
{[%clk 0:02:06.3]} 33... Nf5 {[%clk 0:00:27.9]} 34. R3e2 {[%clk 0:02:05.9]}
34... Ng3 {[%clk 0:00:28.2]} 35. Rd2 {[%clk 0:02:05.9]} 35... g5 {[%clk
0:00:26]} 36. Ne3 {[%clk 0:02:04.6]} 36... Rb5 {[%clk 0:00:23.8]} 37. Nf1 {[%clk
0:02:04.1]} 37... Nf5 {[%clk 0:00:23.2]} 38. Ree2 {[%clk 0:01:54.5]} 38... Rcb6
{[%clk 0:00:23.1]} 39. Rc2 {[%clk 0:01:54.6]} 39... Ke7 {[%clk 0:00:20.8]} 40.
Nh2 {[%clk 0:01:53.4]} 40... Kf7 {[%clk 0:00:20.5]} 41. Ng4 {[%clk 0:01:53.6]}
41... Rb3 {[%clk 0:00:20.2]} 42. Ne3 {[%clk 0:01:52.8]} 42... Ng3 {[%clk
0:00:20.3]} 43. Red2 {[%clk 0:01:52.3]} 43... Ke7 {[%clk 0:00:19.6]} 44. Ng4
{[%clk 0:01:51.9]} 44... Kf7 {[%clk 0:00:19.7]} 45. Nh2 {[%clk 0:01:52.2]} 45...
R6b5 {[%clk 0:00:19]} 46. Nf1 {[%clk 0:01:52.6]} 46... Nf5 {[%clk 0:00:17.7]}
47. Re2 {[%clk 0:01:52]} 47... Rb6 {[%clk 0:00:17.4]} 48. Ne3 {[%clk 0:01:49.7]}
48... Ng3 {[%clk 0:00:16.5]} 49. Red2 {[%clk 0:01:49.4]} 49... R3b5 {[%clk
0:00:17]} 50. Nd1 {[%clk 0:01:49.3]} 50... Rb3 {[%clk 0:00:15.2]} 51. Kg1 {[%clk
0:01:47.8]} 51... R3b5 {[%clk 0:00:15.4]} 52. Rf2 {[%clk 0:01:47.7]} 52... Nh5
{[%clk 0:00:14.7]} 53. Rfe2 {[%clk 0:01:46]} 53... Nf4 {[%clk 0:00:15]} 54. Red2
{[%clk 0:01:44.2]} 54... Nd3 {[%clk 0:00:14.6]} 55. Kf1 {[%clk 0:01:44.6]} 55...
Kg6 {[%clk 0:00:14.4]} 56. Ke2 {[%clk 0:01:44.4]} 56... Kf7 {[%clk 0:00:14.7]}
57. Kf1 {[%clk 0:01:44.5]} 57... e5 {[%clk 0:00:14.7]} 58. dxe5 {[%clk
0:01:42.8]} 58... fxe5 {[%clk 0:00:15.6]} 59. Kg1 {[%clk 0:01:42.6]} 59... Ke6
{[%clk 0:00:15.9]} 60. Kf1 {[%clk 0:01:42.9]} 60... Rb3 {[%clk 0:00:15.8]} 61.
Kg1 {[%clk 0:01:43]} 61... Kd6 {[%clk 0:00:15]} 62. Kf1 {[%clk 0:01:43.4]} 62...
Kc5 {[%clk 0:00:15.2]} 63. Kg1 {[%clk 0:01:42.8]} 63... d4 {[%clk 0:00:14.5]}
64. cxd4+ {[%clk 0:01:41.7]} 64... exd4 {[%clk 0:00:15.4]} 65. Kf1 {[%clk
0:01:34.8]} 65... Kd5 {[%clk 0:00:16]} 66. Re2 {[%clk 0:01:29.3]} 66... Nf4
{[%clk 0:00:13.4]} 67. Re8 {[%clk 0:01:28.2]} 67... d3 {[%clk 0:00:13.5]} 68.
Ne3+ {[%clk 0:01:23.6]} 68... Kd6 {[%clk 0:00:05]} 69. Nxc4+ {[%clk 0:01:23.4]}
69... Kd7 {[%clk 0:00:04.7]} 70. Nxb6+ {[%clk 0:01:13.5]} 70... Kxe8 {[%clk
0:00:05.1]} 71. Rc8+ {[%clk 0:01:12.4]} 71... Ke7 {[%clk 0:00:05.3]} 72. Nc4
{[%clk 0:01:12.8]} 72... b5 {[%clk 0:00:03.5]} 73. Nd2 {[%clk 0:01:10.4]} 73...
Rxb2 {[%clk 0:00:03.6]} 74. Ne4 {[%clk 0:01:10.7]} 74... Rb1+ {[%clk 0:00:03.8]}
75. Kf2 {[%clk 0:01:10.6]} 75... Rb2+ {[%clk 0:00:04.7]} 76. Ke3 {[%clk
0:01:10.7]} 76... Re2+ {[%clk 0:00:04.9]} 77. Kd4 {[%clk 0:01:10]} 77... d2
{[%clk 0:00:05.8]} 78. Nxd2 {[%clk 0:01:10]} 78... Rxd2+ {[%clk 0:00:06.4]} 79.
Kc3 {[%clk 0:01:09.6]} 79... Rxg2 {[%clk 0:00:06.5]} 80. Rc7+ {[%clk 0:01:09.6]}
80... Kd6 {[%clk 0:00:06.7]} 81. Rg7 {[%clk 0:01:09.9]} 81... Rg3 {[%clk
0:00:06.8]} 82. Kb4 {[%clk 0:01:10.1]} 82... Nxh3 {[%clk 0:00:04.3]} 83. Kxb5
{[%clk 0:01:08.9]} 83... Ng1 {[%clk 0:00:04.7]} 84. a4 {[%clk 0:01:09.2]} 84...
Nxf3 {[%clk 0:00:04.6]} 85. a5 {[%clk 0:01:09.2]} 85... Rg1 {[%clk 0:00:05.2]}
86. a6 {[%clk 0:01:09.5]} 86... Rb1+ {[%clk 0:00:05.8]} 87. Kc4 {[%clk
0:01:09.4]} 87... Ra1 {[%clk 0:00:05.5]} 88. a7 {[%clk 0:01:09.5]} 88... h3
{[%clk 0:00:05.2]} 89. Kd3 {[%clk 0:01:09.2]} 89... h2 {[%clk 0:00:05.2]} 90.
Rh7 {[%clk 0:01:09.7]} 90... g4 {[%clk 0:00:05.2]} 91. Ke3 {[%clk 0:01:09.5]}
91... Rxa7 {[%clk 0:00:03.7]} 92. Rh6+ {[%clk 0:01:09.5]} 92... Ke5 {[%clk
0:00:03.7]} 93. Kf2 {[%clk 0:01:09.8]} 93... Kf4 {[%clk 0:00:03.4]} 94. Rf6+
{[%clk 0:01:09.5]} 94... Kg5 {[%clk 0:00:03.9]} 95. Rf8 {[%clk 0:01:08.6]} 95...
h1=Q {[%clk 0:00:04]} 96. Rg8+ {[%clk 0:01:09.2]} 96... Kf6 {[%clk 0:00:04.2]}
97. Rf8+ {[%clk 0:01:09.6]} 97... Kg7 {[%clk 0:00:04.4]} 98. Rf4 {[%clk
0:01:08.7]} 98... Ra2+ {[%clk 0:00:04.8]} 99. Ke3 {[%clk 0:01:08.9]} 99... Qe1+
{[%clk 0:00:05.1]} 100. Kd3 {[%clk 0:01:08.7]} 100... Ra3+ {[%clk 0:00:05.4]}
101. Kc4 {[%clk 0:01:08]} 101... Qc3+ {[%clk 0:00:05.8]} 102. Kd5 {[%clk
0:01:08.1]} 102... Ra5+ {[%clk 0:00:06.4]} 103. Ke4 {[%clk 0:01:08.4]} 103...
Qe5+ {[%clk 0:00:06.6]} 104. Kd3 {[%clk 0:01:08.4]} 104... Qxf4 {[%clk
0:00:07.1]} 105. Ke2 {[%clk 0:01:09.3]} 105... Qe4+ {[%clk 0:00:07.5]} 106. Kf2
{[%clk 0:01:10.2]} 106... Ne5 {[%clk 0:00:07.8]} 107. Kg3 {[%clk 0:01:11.1]}
107... Qf3+ {[%clk 0:00:08.2]} 108. Kh4 {[%clk 0:01:12]} 108... Qh3+ {[%clk
0:00:08.6]} 109. Kg5 {[%clk 0:01:12.9]} 109... Nd3# {[%clk 0:00:08.8]} 0-1

[Event "Early-Titled-Tuesday-Blitz-January-30-2024"]
[Site "Chess.com"]
[Date "2024.01.30"]
[Round "4"]
[White "AlexLongson"]
[Black "yaguigor"]
[Result "1-0"]
[WhiteElo "2424"]
[BlackElo "2572"]
[TimeControl "180+1"]
[EndTime "8:42:50 PST"]
[Termination "AlexLongson won on time"]

1. e4 {[%clk 0:03:00.9]} 1... c5 {[%clk 0:02:59.1]} 2. Nf3 {[%clk 0:03:01.1]}
2... Nc6 {[%clk 0:02:57.1]} 3. Bb5 {[%clk 0:03:01.2]} 3... Nf6 {[%clk
0:02:56.2]} 4. Nc3 {[%clk 0:02:57.7]} 4... Qc7 {[%clk 0:02:55.1]} 5. O-O {[%clk
0:02:56]} 5... Nd4 {[%clk 0:02:54.6]} 6. Re1 {[%clk 0:02:47.7]} 6... a6 {[%clk
0:02:53.1]} 7. Bf1 {[%clk 0:02:39.5]} 7... e5 {[%clk 0:02:51.5]} 8. Nb1 {[%clk
0:02:29.2]} 8... d6 {[%clk 0:02:48.3]} 9. c3 {[%clk 0:02:26.9]} 9... Nxf3+
{[%clk 0:02:47]} 10. Qxf3 {[%clk 0:02:27.8]} 10... Be7 {[%clk 0:02:43.2]} 11. a4
{[%clk 0:02:16]} 11... b6 {[%clk 0:02:39.5]} 12. Na3 {[%clk 0:02:15.2]} 12...
O-O {[%clk 0:02:34]} 13. d3 {[%clk 0:02:11.7]} 13... Bd7 {[%clk 0:02:30.4]} 14.
Nc4 {[%clk 0:02:04.6]} 14... b5 {[%clk 0:02:28.3]} 15. axb5 {[%clk 0:01:56.7]}
15... axb5 {[%clk 0:02:29.2]} 16. Rxa8 {[%clk 0:01:56.6]} 16... Rxa8 {[%clk
0:02:29]} 17. Ne3 {[%clk 0:01:56.9]} 17... g6 {[%clk 0:02:19]} 18. h3 {[%clk
0:01:52.9]} 18... Be6 {[%clk 0:02:13.8]} 19. Nd5 {[%clk 0:01:34.5]} 19... Nxd5
{[%clk 0:02:03.3]} 20. exd5 {[%clk 0:01:34.2]} 20... Bf5 {[%clk 0:01:52.4]} 21.
g4 {[%clk 0:01:02.8]} 21... Bd7 {[%clk 0:01:47.9]} 22. d4 {[%clk 0:01:00.3]}
22... Re8 {[%clk 0:01:45.3]} 23. dxe5 {[%clk 0:00:58.2]} 23... dxe5 {[%clk
0:01:44.4]} 24. c4 {[%clk 0:00:56.5]} 24... bxc4 {[%clk 0:01:37.6]} 25. Bxc4
{[%clk 0:00:55.9]} 25... Bd6 {[%clk 0:01:32.8]} 26. Qf6 {[%clk 0:00:50.1]} 26...
Be7 {[%clk 0:01:20.8]} 27. Qxe5 {[%clk 0:00:49.6]} 27... Bd6 {[%clk 0:01:14.5]}
28. Qc3 {[%clk 0:00:41.1]} 28... Qd8 {[%clk 0:01:12.5]} 29. Rxe8+ {[%clk
0:00:38.2]} 29... Qxe8 {[%clk 0:01:11.6]} 30. Bh6 {[%clk 0:00:37.4]} 30... Be5
{[%clk 0:01:06.2]} 31. Qe3 {[%clk 0:00:35.3]} 31... Qe7 {[%clk 0:01:05.2]} 32.
Kg2 {[%clk 0:00:29.6]} 32... Qd6 {[%clk 0:01:04.6]} 33. f4 {[%clk 0:00:26.1]}
33... Bg7 {[%clk 0:00:54.4]} 34. Bxg7 {[%clk 0:00:25.1]} 34... Kxg7 {[%clk
0:00:54.3]} 35. Qe5+ {[%clk 0:00:26]} 35... Qxe5 {[%clk 0:00:51.9]} 36. fxe5
{[%clk 0:00:26.9]} 36... g5 {[%clk 0:00:48.2]} 37. Kf3 {[%clk 0:00:25.7]} 37...
Kf8 {[%clk 0:00:45]} 38. Ke3 {[%clk 0:00:25]} 38... Ke7 {[%clk 0:00:45.1]} 39.
Be2 {[%clk 0:00:24.1]} 39... h6 {[%clk 0:00:42.3]} 40. Ke4 {[%clk 0:00:23.7]}
40... Bc8 {[%clk 0:00:40.3]} 41. Bc4 {[%clk 0:00:21.6]} 41... Bd7 {[%clk
0:00:39.5]} 42. Ke3 {[%clk 0:00:20.6]} 42... Bc8 {[%clk 0:00:39.4]} 43. Ke4
{[%clk 0:00:20.6]} 43... Bd7 {[%clk 0:00:39.6]} 44. Ba6 {[%clk 0:00:20.6]} 44...
Ba4 {[%clk 0:00:27.8]} 45. Bc8 {[%clk 0:00:16.6]} 45... Bc2+ {[%clk 0:00:25.8]}
46. Ke3 {[%clk 0:00:16.6]} 46... Bb3 {[%clk 0:00:20.9]} 47. Ke4 {[%clk
0:00:16.9]} 47... Bc2+ {[%clk 0:00:20.8]} 48. Ke3 {[%clk 0:00:17.3]} 48... Bb3
{[%clk 0:00:21.6]} 49. d6+ {[%clk 0:00:17.8]} 49... Kd8 {[%clk 0:00:20.8]} 50.
Bf5 {[%clk 0:00:18]} 50... Bd5 {[%clk 0:00:19.6]} 51. Be4 {[%clk 0:00:17.7]}
51... Bc4 {[%clk 0:00:18.4]} 52. Bc6 {[%clk 0:00:17.7]} 52... Kc8 {[%clk
0:00:18.1]} 53. Kf2 {[%clk 0:00:17.4]} 53... Kd8 {[%clk 0:00:16.9]} 54. Kg3
{[%clk 0:00:16.2]} 54... Bd3 {[%clk 0:00:15.7]} 55. h4 {[%clk 0:00:16.1]} 55...
Bc4 {[%clk 0:00:14.3]} 56. hxg5 {[%clk 0:00:16.1]} 56... hxg5 {[%clk 0:00:13.9]}
57. Kf3 {[%clk 0:00:15.9]} 57... Bb3 {[%clk 0:00:11.6]} 58. Kf2 {[%clk
0:00:14.7]} 58... Bd1 {[%clk 0:00:11.2]} 59. Bf3 {[%clk 0:00:14.5]} 59... Bc2
{[%clk 0:00:11.2]} 60. Bc6 {[%clk 0:00:12]} 60... Bd1 {[%clk 0:00:09.4]} 61. Bf3
{[%clk 0:00:12]} 61... Bc2 {[%clk 0:00:09]} 62. Ke3 {[%clk 0:00:12.5]} 62... Kd7
{[%clk 0:00:08.4]} 63. Be4 {[%clk 0:00:12.9]} 63... Bd1 {[%clk 0:00:07.5]} 64.
Bf3 {[%clk 0:00:12.3]} 64... Bc2 {[%clk 0:00:07]} 65. Bd5 {[%clk 0:00:12]} 65...
Ke8 {[%clk 0:00:05.9]} 66. Kf3 {[%clk 0:00:11]} 66... Bd1+ {[%clk 0:00:04.8]}
67. Kg3 {[%clk 0:00:11]} 67... Be2 {[%clk 0:00:05.3]} 68. Kh3 {[%clk 0:00:10.2]}
68... Bd1 {[%clk 0:00:05.2]} 69. Kg3 {[%clk 0:00:10.5]} 69... Be2 {[%clk
0:00:05.3]} 70. Ba2 {[%clk 0:00:10.5]} 70... Bd1 {[%clk 0:00:05.2]} 71. Bc4
{[%clk 0:00:10.7]} 71... Kf8 {[%clk 0:00:04.2]} 72. e6 {[%clk 0:00:08.1]} 72...
fxe6 {[%clk 0:00:03.8]} 73. Bxe6 {[%clk 0:00:09]} 73... Ke8 {[%clk 0:00:04.1]}
74. Kf2 {[%clk 0:00:08.9]} 74... Bc2 {[%clk 0:00:03.1]} 75. Ke3 {[%clk
0:00:09.3]} 75... Bd1 {[%clk 0:00:03.3]} 76. Ke4 {[%clk 0:00:09.4]} 76... Bc2+
{[%clk 0:00:03.3]} 77. Ke5 {[%clk 0:00:09.7]} 77... Kd8 {[%clk 0:00:02.5]} 78.
Kf6 {[%clk 0:00:10.2]} 78... Bd3 {[%clk 0:00:02.5]} 79. Kxg5 {[%clk 0:00:10.4]}
79... Be2 {[%clk 0:00:03]} 80. Kf6 {[%clk 0:00:10.9]} 1-0